bitfinex-derivatives/quotes_ETHF0:USTF0_20250210
["timestamp","ask_amount","ask_price","bid_price","bid_amount"]
[1739154110932,3.2078,2579.7,2579.2,2.25436581]
[1739154111229,0.0058054,2580.1,2579.5,2.25436581]
[1739154111230,0.6239,2580.0,2579.5,2.25436581]
[1739154111427,0.0058054,2580.1,2579.8,2.25436581]
[1739154112429,0.0058054,2580.1,2580.0,3.2078]
[1739154112629,0.656,2580.8,2580.0,3.2078]
[1739154112835,3.2078,2581.0,2580.4,2.25436581]
[1739154113033,3.2078,2581.0,2580.5,0.676]
[1739154113732,3.21361677,2581.0,2580.3,3.2078]
[1739154113940,3.2078,2580.7,2580.3,3.2078]
[1739154114238,3.21361677,2581.0,2580.1,0.676]
[1739154114631,4.17131491,2580.9,2580.1,0.676]
[1739154115131,3.21361677,2581.0,2580.1,0.676]
[1739154115332,3.21361677,2581.0,2580.3,2.25436581]
[1739154115642,3.21361677,2581.0,2580.2,3.2078]
[1739154116043,4.3321245,2580.9,2580.2,3.2078]
[1739154117551,4.3321245,2580.9,2580.1,0.676]
[1739154117552,3.2078,2580.7,2580.1,0.676]
[1739154117745,4.3321245,2580.9,2580.2,3.2078]
[1739154118047,3.21361677,2581.0,2580.2,3.2078]
[1739154118352,0.00581677,2581.0,2580.4,2.88617066]
[1739154119248,0.00581677,2581.0,2580.5,3.2078]
[1739154119655,0.00581677,2581.0,2580.9,3.2078]
[1739154119841,0.00581677,2581.0,2580.7,2.88617066]
[1739154120048,0.00581677,2581.0,2580.8,0.6959]
[1739154120948,0.00581677,2581.0,2580.4,2.88617066]
[1739154121150,4.17288432,2580.9,2580.1,6.09397066]
[1739154121356,1.9735,2580.8,2580.2,0.6901]
[1739154121749,4.2220271,2580.7,2580.2,0.6901]
[1739154122552,3.2078,2580.6,2579.8,6.09978743]
[1739154122950,3.2078,2580.0,2579.8,0.00581677]
[1739154123256,4.11425119,2579.9,2579.8,0.00581677]
[1739154123453,6.13575119,2579.9,2579.8,0.00581677]
[1739154123852,6.13575119,2579.9,2579.1,0.6901]
[1739154124053,3.2078,2579.5,2579.1,0.6901]
[1739154124964,5.2293,2579.9,2579.2,2.88617066]
[1739154125259,0.00581677,2579.6,2579.2,6.09397066]
[1739154125853,0.00581677,2579.6,2579.5,6.09397066]
[1739154126054,2.151,2580.3,2579.5,6.09397066]
[1739154126257,3.2078,2580.6,2579.9,2.88617066]
[1739154127155,0.00581677,2580.5,2580.2,2.88617066]
[1739154127853,3.2078,2581.0,2580.2,8.88617066]
[1739154128157,3.2078,2581.6,2580.9,2.88617066]
[1739154128356,3.2078,2581.6,2581.0,3.2078]
[1739154128557,3.2078,2581.6,2580.9,2.88617066]
[1739154129055,3.2078,2581.6,2581.0,0.00581677]
[1739154129259,0.00581677,2581.5,2581.0,0.00581677]
[1739154129650,3.2078,2581.3,2581.0,0.00581677]
[1739154130054,4.87462361,2581.2,2580.3,2.88617066]
[1739154130364,3.2078,2581.0,2580.3,2.88617066]
[1739154130562,5.54172361,2581.2,2580.9,2.88617066]
[1739154130768,0.6745,2581.2,2580.9,2.88617066]
[1739154131062,0.6745,2581.2,2580.4,3.2078]
[1739154131254,3.2078,2581.0,2580.8,0.00581677]
[1739154131661,4.0457436,2580.9,2580.8,0.00581677]
[1739154132861,4.0457436,2580.9,2580.2,0.00417305]
[1739154133061,3.2078,2580.6,2580.2,0.00417305]
[1739154133667,3.2078,2580.9,2580.3,6.09397066]
[1739154133866,0.6745,2581.2,2580.6,2.88617066]
[1739154134162,0.6745,2581.2,2580.6,6.09397066]
[1739154134553,0.6745,2581.2,2580.2,0.00417305]
[1739154134554,0.6745,2581.2,2580.3,6.09397066]
[1739154134763,7.4584799,2581.1,2580.4,3.2078]
[1739154135660,2.149,2581.0,2580.2,0.00417305]
[1739154136058,4.09798228,2580.9,2580.2,0.00417305]
[1739154136259,3.2078,2580.8,2580.2,0.00417305]
[1739154136559,3.2078,2580.5,2580.2,0.00417305]
[1739154136762,0.6382,2580.4,2580.2,0.00417305]
[1739154136965,4.51606365,2580.4,2580.2,0.00417305]
[1739154138165,3.2078,2580.8,2580.2,0.00417305]
[1739154138361,3.2078,2580.8,2580.3,2.88617066]
[1739154138769,3.2078,2580.8,2580.3,3.54037066]
[1739154139764,0.6818,2580.9,2580.3,3.54037066]
[1739154143368,4.4923,2581.3,2580.6,2.88617066]
[1739154144768,4.3364001,2581.2,2580.5,3.2078]
[1739154145170,3.2078,2580.6,2580.3,2.88617066]
[1739154145465,3.2078,2580.6,2580.2,0.00417305]
[1739154145773,4.9591001,2580.5,2580.2,0.00417305]
[1739154146771,5.5986001,2580.5,2580.2,0.00417305]
[1739154147265,3.2078,2580.3,2580.2,0.00417305]
[1739154149371,3.2078,2580.3,2579.4,6.09397066]
[1739154149869,3.2078,2579.7,2579.2,0.6263]
[1739154150071,3.2078,2579.7,2579.1,3.2078]
[1739154150275,4.44225863,2579.6,2579.1,3.2078]
[1739154150668,4.44225863,2579.6,2578.7,0.6263]
[1739154150983,3.2078,2579.1,2578.7,0.6263]
[1739154151276,3.2078,2579.1,2578.3,3.2078]
[1739154151576,4.19189354,2579.0,2578.3,3.2078]
[1739154151979,4.83109354,2579.0,2578.3,3.2078]
[1739154152370,0.6615,2578.9,2578.3,3.2078]
[1739154152669,3.2078,2578.4,2577.6,2.88617066]
[1739154152866,3.2078,2578.4,2577.3,6.73707066]
[1739154153576,4.28752879,2578.3,2577.3,6.73707066]
[1739154153773,4.28752879,2578.3,2576.7,0.02892609]
[1739154153774,3.2078,2578.0,2577.0,6.09397066]
[1739154153979,0.6692,2577.9,2577.0,6.09397066]
[1739154154175,4.85435672,2577.9,2577.0,6.09397066]
[1739154154383,3.2078,2577.7,2577.0,6.09397066]
[1739154154586,3.2078,2577.7,2577.0,3.2078]
[1739154154877,4.46020106,2577.6,2577.0,3.2078]
[1739154156783,3.2078,2577.4,2577.0,2.1814]
[1739154157380,3.2078,2577.1,2576.1,6.38396375]
[1739154157582,3.2078,2577.1,2576.1,6.09397066]
[1739154157780,6.49267681,2577.0,2576.1,6.09397066]
[1739154158377,6.49267681,2577.0,2576.3,3.2078]
[1739154158579,3.21361677,2576.8,2576.1,2.88617066]
[1739154158780,3.21361677,2576.8,2576.0,3.8586]
[1739154158781,3.2078,2576.5,2576.0,3.8586]
[1739154159681,4.36649391,2576.4,2576.0,3.2078]
[1739154160083,4.36649391,2576.4,2575.8,3.31197066]
[1739154160291,4.36649391,2576.4,2575.7,3.2078]
[1739154160481,4.36649391,2576.4,2575.5,2.88617066]
[1739154160781,3.2078,2576.2,2575.5,2.88617066]
[1739154161289,3.2078,2575.9,2575.3,3.885]
[1739154161887,3.2078,2575.9,2575.5,2.88617066]
[1739154162388,3.2078,2576.2,2575.5,2.88617066]
[1739154162788,7.57174117,2576.2,2575.5,2.88617066]
[1739154163186,3.2078,2576.2,2575.8,2.88617066]
[1739154163494,3.2078,2576.2,2575.6,3.2078]
[1739154163694,3.2078,2576.2,2575.7,40.8]
[1739154163889,4.080915,2576.1,2575.7,40.8]
[1739154164187,4.080915,2576.1,2575.5,2.88617066]
[1739154164383,3.2078,2576.2,2575.5,2.88617066]
[1739154164693,3.2078,2576.2,2575.6,40.8]
[1739154164988,3.2078,2576.2,2575.8,2.88617066]
[1739154166496,3.2078,2575.9,2575.3,3.885]
[1739154166786,5.3538,2575.9,2575.2,2.88617066]
[1739154167088,3.2078,2575.6,2575.0,40.8]
[1739154167392,2.146,2575.9,2575.2,2.88617066]
[1739154167594,2.146,2575.9,2575.5,2.88617066]
[1739154167787,3.2078,2576.0,2575.5,2.88617066]
[1739154168087,3.2078,2576.4,2575.8,6.09397066]
[1739154168491,2.146,2576.5,2575.8,6.09397066]
[1739154168692,2.146,2576.5,2575.9,0.6555]
[1739154168893,4.13596219,2576.4,2575.9,0.6555]
[1739154169089,2.146,2576.5,2575.9,0.6555]
[1739154169492,2.146,2576.5,2576.1,3.2078]
[1739154170292,2.146,2576.5,2575.9,0.6555]
[1739154171394,0.00581677,2576.8,2576.4,6.09397066]
[1739154171693,0.00581677,2576.8,2576.7,6.09397066]
[1739154171990,0.00581677,2576.8,2576.4,6.09397066]
[1739154172385,0.00581677,2576.8,2576.7,6.09397066]
[1739154172990,3.2078,2577.4,2576.7,12.09397066]
[1739154173185,3.2078,2577.8,2577.1,2.88617066]
[1739154173591,4.29789327,2577.7,2577.1,2.88617066]
[1739154173791,3.2078,2577.8,2577.1,2.88617066]
[1739154173995,0.6833,2578.0,2577.4,6.09397066]
[1739154174400,0.6833,2578.0,2577.3,3.2078]
[1739154174401,0.00581677,2577.7,2577.3,3.2078]
[1739154174697,0.00581677,2577.7,2577.2,0.00581677]
[1739154174994,4.46124517,2577.6,2577.4,6.09397066]
[1739154175193,0.00581677,2577.7,2577.4,6.09397066]
[1739154176295,0.00581677,2577.7,2577.5,0.6171]
[1739154176499,2.7765,2578.6,2577.5,0.6171]
[1739154176691,3.2078,2578.5,2577.7,6.09397066]
[1739154176896,7.57003544,2578.5,2577.7,6.09397066]
[1739154177203,3.2078,2578.2,2577.6,0.6217]
[1739154177698,3.21361677,2578.2,2577.6,0.6217]
[1739154178995,0.00581677,2578.2,2577.6,0.6217]
[1739154179299,0.00581677,2578.2,2578.1,3.2078]
[1739154179502,0.00581677,2578.2,2578.0,2.88617066]
[1739154179700,0.00581677,2578.2,2578.1,3.2078]
[1739154179894,0.00581677,2578.2,2578.0,2.88617066]
[1739154180204,0.00581677,2578.2,2578.1,3.2078]
[1739154180796,0.00581677,2578.2,2577.8,3.2078]
[1739154182205,3.21361677,2578.2,2577.6,0.6217]
[1739154182402,3.21361677,2578.2,2577.5,0.6171]
[1739154182797,3.2078,2577.9,2577.2,3.21361677]
[1739154184200,4.09181974,2577.8,2577.2,3.21361677]
[1739154185104,3.2078,2577.8,2577.2,3.21361677]
[1739154185403,3.2078,2577.5,2577.2,0.00581677]
[1739154185800,4.95647405,2577.4,2577.2,0.00581677]
[1739154186202,4.31437405,2577.4,2577.2,0.00581677]
[1739154186503,3.2078,2577.8,2577.2,0.00581677]
[1739154186698,3.2078,2577.5,2577.2,0.00581677]
[1739154187213,3.2078,2577.8,2577.2,0.00581677]
[1739154188307,0.6182,2578.0,2577.2,3.21361677]
[1739154188611,3.2078,2577.8,2577.2,0.00581677]
[1739154189107,0.6182,2578.0,2577.2,0.00581677]
[1739154189511,4.04391975,2577.9,2577.2,0.00581677]
[1739154189905,4.04391975,2577.9,2577.2,3.21361677]
[1739154190103,3.2078,2577.8,2577.2,3.21361677]
[1739154191609,0.6182,2578.0,2577.2,3.21361677]
[1739154192011,4.06998158,2577.9,2577.2,3.21361677]
[1739154192911,3.8203,2578.1,2577.5,3.2078]
[1739154193215,0.00581677,2578.2,2577.7,2.88617066]
[1739154193415,0.00581677,2578.2,2577.7,3.52017066]
[1739154193606,0.00581677,2578.2,2577.7,0.634]
[1739154193808,3.2078,2577.9,2577.3,3.2078]
[1739154194115,0.611,2577.8,2577.3,3.2078]
[1739154194310,0.611,2577.8,2577.4,2.88617066]
[1739154194512,6.95340128,2578.1,2577.4,2.88617066]
[1739154194712,7.56440128,2578.1,2577.4,2.88617066]
[1739154195112,7.56440128,2578.1,2577.3,3.2078]
[1739154195313,3.2078,2577.9,2577.3,3.2078]
[1739154196018,0.6544,2577.8,2577.3,3.2078]
[1739154196217,5.11884559,2577.8,2577.3,3.2078]
[1739154198322,3.2078,2577.7,2577.2,0.00581677]
[1739154199226,4.27866059,2577.6,2577.2,0.00581677]
[1739154199623,0.6746,2577.5,2577.2,0.00581677]
[1739154200420,2.147,2577.9,2577.4,2.88617066]
[1739154200618,2.147,2577.9,2577.2,3.21361677]
[1739154202228,4.06615766,2577.8,2577.2,0.00581677]
[1739154202524,3.2078,2577.7,2577.2,0.00581677]
[1739154202728,0.6681,2577.6,2577.2,0.00581677]
[1739154203028,4.97440465,2577.6,2577.2,0.00581677]
[1739154203228,0.6303,2577.5,2577.2,0.00581677]
[1739154203821,5.3478,2578.0,2577.2,0.00581677]
[1739154204026,5.9781,2578.0,2577.4,6.09397066]
[1739154204220,2.7703,2578.0,2577.5,0.6168]
[1739154204622,4.48299188,2577.9,2577.2,0.00581677]
[1739154205026,0.6303,2578.0,2577.6,3.2078]
[1739154205931,0.6303,2578.0,2577.6,3.8246]
[1739154206624,0.6303,2578.0,2577.4,2.88617066]
[1739154206931,0.6303,2578.0,2577.2,3.21361677]
[1739154207818,7.49310806,2577.9,2577.2,3.21361677]
[1739154208021,0.6746,2577.8,2577.2,0.00581677]
[1739154208729,3.2078,2577.6,2577.2,0.00581677]
[1739154209232,4.08349742,2577.5,2577.2,0.00581677]
[1739154209831,0.6441,2577.4,2577.2,0.00581677]
[1739154212133,3.2078,2577.3,2577.2,0.00581677]
[1739154212325,7.42033228,2577.3,2576.6,0.6153]
[1739154212534,3.2078,2577.0,2576.6,0.6153]
[1739154213036,3.2078,2577.3,2576.6,0.6153]
[1739154213336,4.42991985,2576.9,2576.5,3.2078]
[1739154213537,3.2078,2577.0,2576.7,0.00581677]
[1739154213940,4.37106855,2576.9,2576.7,0.00581677]
[1739154214429,0.6404,2576.8,2576.7,0.00581677]
[1739154215235,4.85599881,2576.8,2576.7,0.00581677]
[1739154217438,4.85599881,2576.8,2575.9,3.56459507]
[1739154217633,3.2078,2576.6,2575.9,3.56459507]
[1739154218142,0.6404,2576.8,2576.1,3.2078]
[1739154218438,4.33805351,2576.7,2575.9,3.56459507]
[1739154218638,4.34387028,2576.7,2575.9,3.56459507]
[1739154218832,0.00581677,2576.7,2575.9,3.56459507]
[1739154219428,0.00581677,2576.7,2575.9,6.77239507]
[1739154219639,0.00581677,2576.7,2576.2,3.2078]
[1739154220339,0.00581677,2576.7,2575.9,6.77239507]
[1739154220540,0.00581677,2576.7,2576.2,3.2078]
[1739154221540,0.00581677,2576.7,2576.2,6.10269507]
[1739154221942,0.00581677,2576.7,2576.5,6.10269507]
[1739154222135,3.2078,2577.6,2576.6,2.0755]
[1739154222335,4.0668,2577.9,2577.0,2.89489507]
[1739154222535,1.9298,2577.9,2577.2,3.2078]
[1739154222736,1.2634,2577.9,2577.3,0.6368]
[1739154223041,3.2078,2578.0,2577.3,4.14509507]
[1739154223229,0.00581677,2577.9,2577.3,1.2502]
[1739154223436,4.13421374,2577.9,2577.4,0.00581677]
[1739154223936,0.00581677,2577.9,2577.4,0.00581677]
[1739154224438,3.2078,2577.7,2577.4,0.00581677]
[1739154224638,0.6096,2577.6,2577.4,0.00581677]
[1739154224834,6.32429177,2577.6,2577.4,0.00581677]
[1739154225930,12.32429177,2577.6,2577.4,0.00581677]
[1739154226139,12.32429177,2577.6,2576.7,0.6368]
[1739154226445,3.2078,2577.2,2576.6,3.2078]
[1739154226635,5.3448,2577.2,2576.6,3.2078]
[1739154226836,4.11662224,2577.1,2576.6,3.2078]
[1739154227033,5.3448,2577.5,2576.6,3.2078]
[1739154227339,9.61568436,2577.5,2576.7,2.89489507]
[1739154227543,9.61568436,2577.5,2576.6,3.2078]
[1739154228744,9.61568436,2577.5,2576.7,2.89489507]
[1739154228938,2.137,2577.5,2576.7,2.89489507]
[1739154229142,0.6096,2577.6,2577.0,6.10269507]
[1739154229343,3.2078,2577.8,2577.1,0.6623]
[1739154229544,3.2078,2577.8,2577.2,0.6318]
[1739154231044,3.2078,2577.8,2577.3,3.2078]
[1739154231549,4.09414065,2577.7,2577.2,0.6318]
[1739154234744,3.2078,2577.8,2577.2,3.8396]
[1739154235041,3.2078,2577.8,2577.2,0.6318]
[1739154235249,4.20276399,2577.7,2576.9,3.2078]
[1739154235540,4.20276399,2577.7,2576.9,44.6307]
[1739154236144,4.20276399,2577.7,2577.3,2.89489507]
[1739154236347,3.2078,2577.8,2577.4,0.6415]
[1739154237544,0.00581677,2577.9,2577.4,0.6415]
[1739154237545,0.00581677,2577.9,2577.6,2.89489507]
[1739154237741,0.00581677,2577.9,2577.7,0.6709]
[1739154239846,3.2078,2578.6,2577.8,3.2078]
[1739154240151,3.2078,2578.6,2578.1,6.10269507]
[1739154241253,3.21361677,2578.6,2578.1,6.10269507]
[1739154241752,0.00581677,2578.6,2578.1,6.10269507]
[1739154243152,0.00581677,2578.6,2578.2,0.6541]
[1739154244259,0.00581677,2578.6,2578.4,6.10269507]
[1739154244457,3.2078,2579.3,2578.5,0.6614]
[1739154244651,0.6436,2579.4,2578.8,6.10269507]
[1739154244851,2.914,2579.9,2578.9,0.6377]
[1739154245052,0.6436,2579.7,2578.9,0.6377]
[1739154245252,5.09871162,2579.7,2578.9,0.6377]
[1739154245551,0.6436,2579.7,2578.9,0.6377]
[1739154245853,0.00581677,2579.6,2579.0,0.00581677]
[1739154246442,0.00581677,2579.6,2579.2,3.2078]
[1739154246852,0.00581677,2579.6,2579.3,0.6644]
[1739154249351,0.00581677,2579.6,2579.2,3.2078]
[1739154250448,0.00581677,2579.6,2579.0,0.00581677]
[1739154250449,3.2078,2579.4,2579.0,0.00581677]
[1739154250755,0.6062,2579.3,2579.0,0.00581677]
[1739154250950,1.8739,2579.3,2579.0,0.00581677]
[1739154251354,0.6062,2579.3,2579.0,0.00581677]
[1739154251652,0.00581677,2579.6,2579.1,3.2078]
[1739154252256,0.00581677,2579.6,2579.0,0.00581677]
[1739154252551,3.2078,2579.4,2579.0,0.00581677]
[1739154252753,0.6062,2579.3,2579.0,0.00581677]
[1739154254850,0.7753,2579.0,2578.0,3.2078]
[1739154255063,5.46553015,2579.1,2577.7,6.72213015]
[1739154255064,3.2078,2578.7,2577.7,6.72213015]
[1739154255348,0.6364,2578.6,2577.8,40.8]
[1739154255743,0.6364,2578.6,2577.7,4.4644]
[1739154255950,0.6364,2578.6,2577.9,0.00581677]
[1739154257564,0.6364,2578.6,2577.9,2.89752752]
[1739154257755,0.6525,2578.9,2578.3,3.2078]
[1739154258261,0.00581677,2579.6,2578.8,2.89171075]
[1739154258455,0.00581677,2579.6,2579.3,3.2078]
[1739154258657,0.00581677,2579.6,2579.4,2.89171075]
[1739154258853,0.00581677,2579.6,2579.4,3.52691075]
[1739154260259,3.2078,2580.6,2579.4,9.52691075]
[1739154260460,130.319,2584.9,2580.3,6.09951075]
[1739154260461,1.9073,2581.0,2580.3,6.09951075]
[1739154260764,1.9073,2581.0,2580.7,2.89171075]
[1739154260953,3.2078,2581.4,2580.7,2.89171075]
[1739154261266,3.2078,2582.1,2581.1,2.89171075]
[1739154261561,3.2078,2582.1,2581.3,3.2078]
[1739154261963,0.00581677,2581.9,2581.3,3.2078]
[1739154263261,0.00581677,2581.9,2581.4,2.89171075]
[1739154263665,0.00581677,2581.9,2581.6,3.2078]
[1739154264861,0.00581677,2581.9,2581.4,2.89171075]
[1739154265463,3.21361677,2581.9,2581.2,3.2078]
[1739154265655,3.2078,2581.4,2580.8,0.00581677]
[1739154265861,3.2078,2581.4,2580.8,6.10532752]
[1739154266066,1.8495,2581.8,2580.8,6.10532752]
[1739154266266,1.8495,2581.8,2581.1,6.09951075]
[1739154266869,0.00581677,2581.9,2581.1,6.09951075]
[1739154267363,0.00581677,2581.9,2581.2,0.6486]
[1739154267570,0.00581677,2581.9,2581.4,3.2078]
[1739154268472,0.00581677,2581.9,2581.2,0.6486]
[1739154269564,0.00581677,2581.9,2581.4,3.2078]
[1739154270663,3.21361677,2581.9,2581.2,0.6486]
[1739154270859,4.26812849,2581.8,2581.1,3.2078]
[1739154271960,0.00581677,2581.9,2581.4,3.2078]
[1739154272473,0.00581677,2581.9,2581.1,6.09951075]
[1739154272975,0.00581677,2581.9,2581.4,3.2078]
[1739154273181,0.00581677,2581.9,2581.1,3.2078]
[1739154273471,4.17331834,2581.8,2581.1,3.2078]
[1739154274473,7.38111834,2581.8,2581.1,3.2078]
[1739154274671,1.2516,2581.7,2581.1,3.2078]
[1739154274863,0.00581677,2581.9,2581.1,6.09951075]
[1739154275175,0.00581677,2581.9,2580.8,0.00581677]
[1739154275176,3.2078,2581.4,2580.8,0.00581677]
[1739154275870,2.126,2581.8,2580.9,3.2078]
[1739154276072,0.00581677,2581.9,2581.2,3.2078]
[1739154276569,0.00581677,2581.9,2581.5,3.2078]
[1739154277178,0.00581677,2581.9,2581.8,3.2078]
[1739154277365,0.6219,2582.7,2581.8,3.2078]
[1739154277570,3.8725,2582.8,2582.1,3.2078]
[1739154277876,3.8725,2582.8,2582.2,0.6135]
[1739154278178,3.2078,2582.8,2582.4,3.2078]
[1739154278566,3.2078,2582.8,2582.3,0.00581677]
[1739154278773,3.2078,2582.8,2582.3,3.21361677]
[1739154279276,3.2078,2582.8,2582.3,0.00581677]
[1739154279873,3.2078,2582.8,2582.3,3.21361677]
[1739154280986,0.63451677,2582.9,2582.3,3.21361677]
[1739154281870,0.00581677,2582.9,2582.3,6.10532752]
[1739154282076,0.00581677,2582.9,2582.6,3.2078]
[1739154283381,0.00581677,2582.9,2582.6,6.09951075]
[1739154284179,0.00581677,2582.9,2582.7,0.6053]
[1739154285281,0.00581677,2582.9,2582.6,3.2078]
[1739154285776,0.00234606,2582.8,2582.6,3.2078]
[1739154285982,0.00234606,2582.8,2582.3,3.21361677]
[1739154287075,4.41828858,2582.7,2582.3,3.21361677]
[1739154287279,0.00234606,2582.8,2582.3,3.21361677]
[1739154289782,4.47678613,2582.7,2582.3,3.21361677]
[1739154290178,5.13378613,2582.7,2582.3,3.21361677]
[1739154290479,0.657,2582.7,2582.3,3.21361677]
[1739154292686,0.00234606,2582.8,2582.3,3.21361677]
[1739154292985,0.00234606,2582.8,2582.4,0.6297]
[1739154293181,0.00234606,2582.8,2582.4,41.4297]
[1739154293388,0.00234606,2582.8,2582.4,0.6297]
[1739154294880,0.00234606,2582.8,2582.3,0.00581677]
[1739154295079,3.2078,2582.5,2582.3,0.00581677]
[1739154295591,5.7284307,2582.4,2582.3,0.00581677]
[1739154296476,6.3302307,2582.4,2581.7,0.6191]
[1739154296680,3.2078,2582.2,2581.7,0.6191]
[1739154297785,3.2078,2582.2,2581.7,0.00581677]
[1739154298294,4.32808796,2582.1,2581.7,0.00581677]
[1739154298484,3.2078,2582.2,2581.7,0.00581677]
[1739154298983,1.2381,2582.4,2582.1,3.2078]
[1739154299187,0.00581677,2582.9,2582.1,3.2078]
[1739154299387,0.00581677,2582.9,2582.3,2.89171075]
[1739154299687,0.00581677,2582.9,2582.4,0.629]
[1739154300293,0.00581677,2582.9,2582.4,3.8368]
[1739154300985,3.21361677,2582.9,2582.4,0.629]
[1739154301187,0.66704606,2582.8,2582.4,0.629]
[1739154301586,4.19997893,2582.7,2582.1,3.2078]
[1739154302082,3.2078,2582.6,2582.1,3.2078]
[1739154302489,1.97804606,2582.8,2582.1,3.2078]
[1739154302883,3.2078,2582.6,2582.1,3.2078]
[1739154303986,4.24742614,2582.5,2582.1,3.2078]
[1739154304290,3.2078,2582.6,2582.1,3.2078]
[1739154305389,4.43443981,2582.5,2582.1,3.2078]
[1739154307590,4.43443981,2582.5,2581.9,40.8]
[1739154307783,4.43443981,2582.5,2581.8,0.6207]
[1739154307984,3.2078,2582.3,2581.8,0.6207]
[1739154308185,3.2078,2582.3,2581.7,0.00581677]
[1739154308385,4.6454107,2582.2,2581.7,0.00581677]
[1739154308585,3.2078,2581.9,2581.7,0.00581677]
[1739154309190,4.30857509,2581.8,2581.7,0.00581677]
[1739154309888,4.30857509,2581.8,2580.7,0.609]
[1739154309889,10.30857509,2581.8,2580.9,3.2078]
[1739154310091,3.2078,2581.5,2580.9,3.2078]
[1739154310287,0.612,2581.4,2580.9,3.2078]
[1739154310488,4.85398751,2581.4,2580.9,3.2078]
[1739154310885,3.98242,2581.3,2580.9,0.00581677]
[1739154311090,3.2078,2581.0,2580.9,0.00581677]
[1739154311586,7.32110594,2581.0,2580.0,3.2078]
[1739154311792,3.2078,2580.7,2580.0,3.2078]
[1739154312189,3.2078,2580.7,2579.8,0.6682]
[1739154312385,3.2078,2580.4,2579.8,0.6682]
[1739154313891,0.6441,2580.6,2580.0,3.2078]
[1739154314087,3.2078,2580.7,2580.0,3.2078]
[1739154314293,4.1878878,2580.5,2580.0,3.2078]
[1739154314482,4.1878878,2580.5,2579.8,0.6682]
[1739154314690,1.8845,2580.6,2579.8,3.876]
[1739154315893,3.2078,2580.4,2579.8,0.6682]
[1739154317791,3.2078,2580.1,2579.4,44.6192]
[1739154318294,0.00581677,2580.0,2579.4,3.8192]
[1739154318688,3.2078,2579.8,2579.3,0.6487]
[1739154319694,0.00581677,2580.0,2579.3,0.6487]
[1739154319891,3.2078,2579.8,2579.3,0.6487]
[1739154320396,4.17224251,2579.7,2579.3,0.6487]
[1739154320986,3.2078,2579.5,2578.8,0.6297]
[1739154321292,5.3268,2579.5,2578.8,0.6297]
[1739154322490,4.37260452,2579.4,2578.8,0.6297]
[1739154325206,5.3268,2579.5,2578.8,0.6297]
[1739154326394,3.2078,2579.5,2579.0,3.2078]
[1739154326995,3.2078,2579.5,2578.8,0.6297]
[1739154327190,4.27250685,2579.4,2578.8,0.6297]
[1739154327697,3.2078,2579.5,2578.9,40.8]
[1739154329497,3.2078,2579.5,2578.8,3.8375]
[1739154330292,3.2078,2579.2,2578.8,0.6297]
[1739154330492,4.16583092,2579.4,2578.8,0.6297]
[1739154330688,5.3268,2579.6,2578.9,40.8]
[1739154331093,5.3268,2579.6,2578.8,1.2485]
[1739154331294,4.05012604,2579.5,2578.8,1.2485]
[1739154331889,4.05012604,2579.5,2578.8,0.6297]
[1739154332100,3.2078,2579.2,2578.4,3.2078]
[1739154332301,1.9169,2579.1,2578.4,3.2078]
[1739154332601,6.36123736,2579.1,2578.4,3.2078]
[1739154333094,3.2078,2578.8,2578.4,3.2078]
[1739154333291,3.2078,2578.8,2578.2,0.6398]
[1739154333493,3.2078,2578.5,2578.2,0.6398]
[1739154333699,3.2078,2578.5,2578.0,3.2078]
[1739154333898,0.6603,2578.4,2578.0,3.2078]
[1739154334792,1.2799,2578.4,2578.0,3.2078]
[1739154334992,3.2078,2578.1,2577.7,0.6398]
[1739154337610,3.2078,2578.1,2577.5,3.2078]
[1739154337901,3.2078,2578.1,2577.1,0.6144]
[1739154337902,4.3492319,2578.0,2577.3,0.644]
[1739154338197,3.2078,2578.2,2577.5,3.2078]
[1739154338198,7.28026943,2578.2,2577.5,3.2078]
[1739154338597,3.2078,2578.2,2577.5,3.2078]
[1739154338799,4.07246943,2578.1,2577.5,3.2078]
[1739154339199,4.07246943,2578.1,2577.5,6.10038189]
[1739154339596,4.07246943,2578.1,2577.3,0.644]
[1739154340003,4.07246943,2578.1,2577.5,3.2078]
[1739154343298,4.07246943,2578.1,2577.8,3.2078]
[1739154343505,3.8477,2578.3,2577.8,3.2078]
[1739154344106,1.2799,2578.4,2577.8,3.2078]
[1739154345604,1.2799,2578.4,2577.5,6.10038189]
[1739154347311,1.2799,2578.4,2577.8,3.2078]
[1739154348010,1.2799,2578.4,2578.2,0.08564498]
[1739154348402,0.00581677,2578.5,2578.2,3.29344498]
[1739154348606,0.00581677,2578.5,2578.4,2.89258189]
[1739154349499,0.00581677,2578.5,2578.3,0.6333]
[1739154350209,0.00581677,2578.5,2578.3,0.71894498]
[1739154352609,0.6255,2579.2,2578.4,2.89258189]
[1739154352918,3.2078,2579.4,2578.8,3.2078]
[1739154354013,3.21361677,2579.4,2579.2,0.08564498]
[1739154356913,4.14018499,2579.3,2579.2,0.08564498]
[1739154357711,4.14018499,2579.3,2578.5,3.2078]
[1739154357712,10.14018499,2579.3,2578.5,3.2078]
[1739154357918,4.14018499,2579.3,2578.5,3.2078]
[1739154360210,4.14018499,2579.3,2578.6,2.25749355]
[1739154360416,3.21361677,2579.4,2578.6,2.25749355]
[1739154361623,4.41103991,2579.3,2578.5,3.2078]
[1739154362514,3.21361677,2579.4,2578.8,3.2078]
[1739154362715,3.21361677,2579.4,2578.9,0.6347]
[1739154365116,3.2078,2579.1,2578.5,3.2078]
[1739154365325,5.46529355,2579.1,2578.5,3.2078]
[1739154365519,6.28326276,2579.0,2578.5,3.2078]
[1739154368023,6.67106276,2579.0,2578.5,3.2078]
[1739154369225,3.2078,2578.6,2578.1,0.00581677]
[1739154369521,2.25749355,2578.8,2578.1,0.00581677]
[1739154369522,5.3208,2578.5,2578.1,0.00581677]
[1739154369727,6.59113867,2578.5,2578.1,0.00581677]
[1739154369915,2.113,2578.5,2578.1,0.00581677]
[1739154370324,2.113,2578.8,2578.1,0.00581677]
[1739154370523,2.113,2578.8,2578.1,0.66551677]
[1739154371126,2.113,2578.8,2578.2,3.2078]
[1739154372823,3.2078,2578.9,2578.2,3.2078]
[1739154373024,1.8822,2579.0,2578.2,3.2078]
[1739154373425,4.43157907,2578.9,2578.5,3.2078]
[1739154373621,1.8822,2579.0,2578.5,3.2078]